fUSD/lending_fUSD_20250507
["ID","MTS","AMOUNT","RATE_DAILY","PERIOD"]
[360207318,1746624641034,-150.0,0.00019932,2]
[360207319,1746624641044,-1000.0,0.00019933,2]
[360207320,1746624641055,-150.0,0.00019934,2]
[360207321,1746624641065,-150.0,0.00019934,2]
[360207322,1746624641075,-150.0,0.00019934,2]
[360207323,1746624641086,-175.40679087,0.00019936,2]
[360207324,1746624641096,-151.0,0.00019936,2]
[360207325,1746624641106,-150.0,0.00019937,2]
[360207326,1746624641116,-12500.0,0.00019937,2]
[360207327,1746624641125,-150.0,0.00019938,2]
[360207328,1746624641134,-150.0,0.0001994,2]
[360207329,1746624641144,-150.0,0.00019942,2]
[360207330,1746624641154,-150.0,0.00019942,2]
[360207331,1746624641167,-150.0,0.00019942,2]
[360207332,1746624641177,-12500.0,0.00019946,2]
[360207333,1746624641187,-150.0,0.00019949,2]
[360207334,1746624641196,-1000.0,0.0001995,2]
[360207335,1746624641207,-150.0,0.0001995,2]
[360207336,1746624641218,-150.0,0.00019951,2]
[360207337,1746624641228,-12500.0,0.00019955,2]
[360207338,1746624641238,-150.0,0.00019955,2]
[360207339,1746624641248,-150.0,0.00019955,2]
[360207340,1746624641257,-150.0,0.00019956,2]
[360207341,1746624641267,-150.0,0.00019956,2]
[360207342,1746624641276,-150.0,0.00019957,2]
[360207343,1746624641286,-150.0,0.00019958,2]
[360207344,1746624641296,-150.0,0.00019958,2]
[360207345,1746624641307,-150.0,0.00019958,2]
[360207346,1746624641317,-150.0,0.00019959,2]
[360207347,1746624641326,-285.66,0.00019959,2]
[360207348,1746624641336,-150.0,0.0001996,2]
[360207349,1746624641346,-150.0,0.00019961,2]
[360207350,1746624641355,-150.0,0.00019961,2]
[360207351,1746624641365,-12500.0,0.00019964,2]
[360207352,1746624641375,-1000.0,0.00019967,2]
[360207353,1746624641384,-151.96427281,0.00019967,2]
[360207354,1746624641394,-150.0,0.00019968,2]
[360207355,1746624641404,-1000.0,0.00019969,2]
[360207356,1746624641414,-1000.0,0.00019969,2]
[360207357,1746624641424,-450.0,0.00019969,2]
[360207358,1746624641433,-450.0,0.00019969,2]
[360207359,1746624641444,-450.0,0.00019969,2]
[360207360,1746624641454,-450.0,0.00019969,2]
[360207361,1746624641463,-450.0,0.00019969,2]
[360207362,1746624641473,-450.0,0.00019969,2]
[360207363,1746624641482,-450.0,0.00019969,2]
[360207364,1746624641491,-450.0,0.00019969,2]
[360207365,1746624641500,-450.0,0.00019969,2]
[360207366,1746624641509,-450.0,0.00019969,2]
[360207367,1746624641519,-450.0,0.00019969,2]
[360207368,1746624641529,-500.0,0.00019969,2]
[360207369,1746624641538,-371.42149829,0.00019969,2]
[360207370,1746624641548,-500.0,0.00019969,2]
[360207371,1746624641559,-500.0,0.00019969,2]
[360207372,1746624641568,-500.0,0.00019969,2]
[360207373,1746624641578,-500.0,0.00019969,2]
[360207374,1746624641588,-500.0,0.00019969,2]
[360207375,1746624641598,-634.46496324,0.00019969,2]
[360207376,1746624641608,-500.0,0.00019969,2]
[360207377,1746624641618,-500.0,0.00019969,2]
[360207378,1746624641627,-500.0,0.00019969,2]
[360207379,1746624641637,-500.0,0.00019969,2]
[360207380,1746624641646,-500.0,0.00019969,2]
[360207381,1746624641655,-450.0,0.00019969,2]
[360207382,1746624641664,-450.0,0.00019969,2]
[360207383,1746624641673,-450.0,0.00019969,2]
[360207384,1746624641683,-450.0,0.00019969,2]
[360207385,1746624641691,-450.0,0.00019969,2]
[360207386,1746624641701,-450.0,0.00019969,2]
[360207387,1746624641710,-450.0,0.00019969,2]
[360207388,1746624641719,-450.0,0.00019969,2]
[360207389,1746624641728,-450.0,0.00019969,2]
[360207390,1746624641738,-4189.83,0.00019969,2]
[360207391,1746624641748,-450.0,0.00019969,2]
[360207392,1746624641757,-450.0,0.00019969,2]
[360207393,1746624641766,-450.0,0.00019969,2]
[360207394,1746624641776,-450.0,0.00019969,2]
[360207395,1746624641785,-450.0,0.00019969,2]
[360207396,1746624641794,-314159.85060697,0.0001997,2]
[360207397,1746624641806,-150.0,0.0001997,2]
[360207398,1746624641815,-450.0,0.0001997,2]
[360207399,1746624641825,-450.0,0.0001997,2]
[360207400,1746624641835,-450.0,0.0001997,2]
[360207401,1746624641846,-450.0,0.0001997,2]
[360207402,1746624641856,-450.0,0.0001997,2]
[360207403,1746624641866,-450.0,0.0001997,2]
[360207404,1746624641875,-450.0,0.0001997,2]
[360207405,1746624641885,-450.0,0.0001997,2]
[360207406,1746624641895,-500.0,0.0001997,2]
[360207407,1746624641904,-500.0,0.0001997,2]
[360207408,1746624641914,-450.0,0.0001997,2]
[360207409,1746624641923,-450.0,0.0001997,2]
[360207410,1746624641933,-450.0,0.0001997,2]
[360207411,1746624641943,-450.0,0.0001997,2]
[360207412,1746624641953,-450.0,0.0001997,2]
[360207413,1746624641963,-450.0,0.0001997,2]
[360207414,1746624641973,-450.0,0.0001997,2]
[360207415,1746624641982,-450.0,0.0001997,2]
[360207416,1746624641995,-450.0,0.0001997,2]
[360207417,1746624642005,-450.0,0.0001997,2]
[360207418,1746624642014,-406.30512219,0.0001997,2]
[360207419,1746624642024,-450.0,0.0001997,2]
[360207420,1746624642033,-450.0,0.0001997,2]
[360207421,1746624642043,-450.0,0.0001997,2]
[360207422,1746624642054,-450.0,0.0001997,2]
[360207423,1746624642063,-259.36,0.0001997,2]
[360207424,1746624642073,-450.0,0.0001997,2]
[360207425,1746624642083,-494.29,0.0001997,2]
[360207426,1746624642093,-494.29,0.0001997,2]
[360207427,1746624642103,-450.0,0.0001997,2]
[360207428,1746624642112,-450.0,0.0001997,2]
[360207429,1746624642123,-450.0,0.0001997,2]
[360207430,1746624642133,-450.0,0.0001997,2]
[360207431,1746624642143,-450.0,0.0001997,2]
[360207432,1746624642153,-450.0,0.0001997,2]
[360207433,1746624642163,-450.0,0.0001997,2]
[360207434,1746624642172,-450.0,0.0001997,2]
[360207435,1746624642181,-450.0,0.0001997,2]
[360207436,1746624642192,-450.0,0.0001997,2]
[360207437,1746624642201,-450.0,0.0001997,2]
[360207438,1746624642211,-450.0,0.0001997,2]
[360207439,1746624642220,-821.59,0.0001997,2]
[360207440,1746624642230,-821.59,0.0001997,2]
[360207441,1746624642241,-450.0,0.0001997,2]
[360207442,1746624642251,-450.0,0.0001997,2]
[360207443,1746624642261,-450.0,0.0001997,2]
[360207444,1746624642270,-450.0,0.0001997,2]
[360207446,1746624642280,-450.0,0.0001997,2]
[360207447,1746624642291,-4189.83,0.0001997,2]
[360207448,1746624642302,-450.0,0.0001997,2]
[360207449,1746624642312,-450.0,0.0001997,2]
[360207450,1746624642322,-450.0,0.0001997,2]
[360207451,1746624642331,-450.0,0.0001997,2]
[360207452,1746624642340,-450.0,0.0001997,2]
[360207453,1746624642349,-450.0,0.0001997,2]
[360207454,1746624642359,-450.0,0.0001997,2]
[360207455,1746624642368,-450.0,0.0001997,2]
[360207456,1746624642377,-265.439215,0.0001997,2]
[360207457,1746624642387,-450.0,0.0001997,2]
[360207458,1746624642395,-450.0,0.0001997,2]
[360207461,1746624642405,-450.0,0.0001997,2]
[360207463,1746624642414,-450.0,0.0001997,2]
[360207465,1746624642423,-450.0,0.0001997,2]
[360207467,1746624642432,-450.0,0.0001997,2]
[360207468,1746624642442,-450.0,0.0001997,2]
[360207469,1746624642451,-848.15,0.0001997,2]
[360207471,1746624642460,-848.15,0.0001997,2]
[360207472,1746624642469,-154.06,0.0001997,2]
[360207473,1746624642479,-462.81350523,0.0001997,2]
[360207474,1746624642487,-511.16135072,0.0001997,2]
[360207475,1746624642497,-450.0,0.0001997,2]
[360207476,1746624642505,-490.0,0.0001997,2]
[360207477,1746624642515,-450.0,0.0001997,2]
[360207478,1746624642524,-450.0,0.0001997,2]
[360207479,1746624642534,-557.5441332,0.0001997,2]
[360207480,1746624642544,-450.0,0.0001997,2]
[360207481,1746624642554,-450.0,0.0001997,2]
[360207482,1746624642563,-288.2639635,0.0001997,2]
[360207483,1746624642573,-450.0,0.00019971,2]
[360207484,1746624642583,-450.0,0.00019971,2]
[360207486,1746624642592,-329.73995308,0.00019971,2]
[360207488,1746624642602,-456.4,0.00019971,2]
[360207489,1746624642611,-450.0,0.00019971,2]
[360207490,1746624642620,-450.0,0.00019971,2]
[360207491,1746624642629,-450.0,0.00019971,2]
[360207492,1746624642639,-450.0,0.00019971,2]
[360207493,1746624642648,-450.0,0.00019971,2]
[360207494,1746624642658,-450.0,0.00019971,2]
[360207495,1746624642667,-450.0,0.00019971,2]
[360207496,1746624642676,-494.85,0.00019971,2]
[360207497,1746624642686,-450.0,0.00019971,2]
[360207498,1746624642695,-450.0,0.00019971,2]
[360207499,1746624642704,-450.0,0.00019971,2]
[360207500,1746624642714,-450.0,0.00019971,2]
[360207501,1746624642723,-450.0,0.00019971,2]
[360207502,1746624642734,-450.0,0.00019971,2]
[360207503,1746624642743,-492.7,0.00019971,2]
[360207504,1746624642752,-450.0,0.00019971,2]
[360207505,1746624642762,-450.0,0.00019971,2]
[360207506,1746624642771,-450.0,0.00019971,2]
[360207507,1746624642781,-450.0,0.00019971,2]
[360207508,1746624642790,-450.0,0.00019971,2]
[360207509,1746624642800,-527.41678442,0.00019971,2]
[360207510,1746624642810,-450.0,0.00019971,2]
[360207511,1746624642819,-450.0,0.00019971,2]
[360207512,1746624642829,-450.0,0.00019971,2]
[360207513,1746624642838,-200.23,0.00019971,2]
[360207514,1746624642848,-450.0,0.00019971,2]
[360207515,1746624642858,-450.0,0.00019971,2]
[360207516,1746624642867,-450.0,0.00019971,2]
[360207517,1746624642877,-450.0,0.00019971,2]
[360207518,1746624642886,-343.62,0.00019971,2]
[360207519,1746624642896,-450.0,0.00019971,2]
[360207520,1746624642906,-550.0,0.00019971,2]
[360207521,1746624642915,-450.0,0.00019971,2]
[360207522,1746624642924,-450.0,0.00019971,2]
[360207523,1746624642933,-450.0,0.00019971,2]
[360207524,1746624642943,-450.0,0.00019971,2]
[360207525,1746624642952,-397.40768691,0.00019971,2]
[360207526,1746624642961,-450.0,0.00019971,2]
[360207527,1746624642971,-450.0,0.00019971,2]
[360207528,1746624642980,-450.0,0.00019971,2]
[360207529,1746624642989,-450.0,0.00019971,2]
[360207530,1746624642998,-450.0,0.00019971,2]
[360207531,1746624643008,-32755.68,0.00019971,2]
[360207532,1746624643017,-450.0,0.00019971,2]
[360207533,1746624643026,-450.0,0.00019971,2]
[360207534,1746624643036,-450.0,0.00019971,2]
[360207535,1746624643045,-151.0,0.00019971,7]
[360207536,1746624643056,-151.0,0.00019971,7]
[360207537,1746624643066,-151.0,0.00019971,7]
[360207538,1746624643076,-151.0,0.00019971,7]
[360207539,1746624643085,-151.0,0.00019971,7]
[360207540,1746624643095,-151.0,0.00019971,7]
[360207543,1746624643105,-151.0,0.00019971,7]
[360207545,1746624643114,-151.0,0.00019971,7]
[360207546,1746624643123,-151.0,0.00019971,7]
[360207547,1746624643132,-151.0,0.00019971,7]
[360207548,1746624643141,-151.0,0.00019971,7]
[360207549,1746624643150,-151.0,0.00019971,7]
[360207550,1746624643162,-151.0,0.00019971,7]
[360207551,1746624643174,-151.0,0.00019971,7]
[360207552,1746624643185,-151.0,0.00019971,7]
[360207553,1746624643194,-151.0,0.00019971,7]
[360207554,1746624643204,-151.0,0.00019971,7]
[360207555,1746624643215,-151.0,0.00019971,7]
[360207556,1746624643224,-151.0,0.00019971,7]
[360207557,1746624643234,-151.0,0.00019971,7]
[360207558,1746624643245,-151.0,0.00019971,7]
[360207559,1746624643258,-151.0,0.00019971,7]
[360207560,1746624643268,-151.0,0.00019971,7]
[360207561,1746624643277,-151.0,0.00019971,7]
[360207562,1746624643288,-151.0,0.00019971,7]
[360207563,1746624643298,-151.0,0.00019971,7]
[360207564,1746624643308,-151.0,0.00019971,7]
[360207565,1746624643317,-151.0,0.00019971,7]
[360207566,1746624643326,-151.0,0.00019971,7]
[360207567,1746624643335,-198.0,0.00019971,7]
[360207568,1746624643344,-615.37,0.00019971,2]
[360207569,1746624643355,-291.29,0.00019971,2]
[360207570,1746624643364,-450.0,0.00019971,2]
[360207571,1746624643375,-164.5,0.00019971,2]
[360207572,1746624643385,-450.0,0.00019971,2]
[360207573,1746624643395,-484.42,0.00019971,2]
[360207574,1746624643404,-328.54060524,0.00019971,2]
[360207575,1746624643414,-450.0,0.00019971,2]
[360207576,1746624643423,-450.0,0.00019971,2]
[360207577,1746624643433,-450.0,0.00019971,2]
[360207578,1746624643443,-450.0,0.00019971,2]
[360207579,1746624643452,-1159.43,0.00019971,2]
[360207580,1746624643462,-8948.77,0.00019971,2]
[360207581,1746624643473,-450.0,0.00019971,2]
[360207582,1746624643483,-450.0,0.00019971,2]
[360207583,1746624643493,-450.0,0.00019971,2]
[360207584,1746624643503,-1151.13,0.00019971,2]
[360207585,1746624643512,-450.0,0.00019971,2]
[360207586,1746624643522,-4062.04,0.00019971,2]
[360207587,1746624643533,-450.0,0.00019971,2]
[360207588,1746624643542,-450.0,0.00019971,2]
[360207589,1746624643552,-450.0,0.00019971,2]
[360207590,1746624643561,-4137.52,0.00019971,2]
[360207591,1746624643571,-2823.22,0.00019971,2]
[360207592,1746624643581,-450.0,0.00019971,2]
[360207593,1746624643591,-1000.0,0.00019972,2]
[360207594,1746624643600,-450.0,0.00019972,2]
[360207595,1746624643609,-450.0,0.00019972,2]
[360207596,1746624643619,-450.0,0.00019972,2]
[360207597,1746624643627,-450.0,0.00019972,2]
[360207598,1746624643636,-450.0,0.00019972,2]
[360207599,1746624643645,-450.0,0.00019972,2]
[360207600,1746624643655,-450.0,0.00019972,2]
[360207601,1746624643664,-301.98617385,0.00019972,2]
[360207602,1746624643673,-450.0,0.00019972,2]
[360207603,1746624643682,-450.0,0.00019972,2]
[360207604,1746624643691,-12500.0,0.00019973,2]
[360207605,1746624643700,-258.61412107,0.00019973,2]
[360207606,1746624643709,-500.0,0.00019973,2]
[360207607,1746624643719,-500.63396549,0.00019973,2]
[360207608,1746624643727,-500.0,0.00019973,2]
[360207609,1746624643737,-3883.0,0.00019973,2]
[360207610,1746624643746,-500.0,0.00019973,2]
[360207611,1746624643755,-500.0,0.00019973,2]
[360207612,1746624643764,-500.0,0.00019973,2]
[360207613,1746624643773,-500.0,0.00019973,2]
[360207614,1746624643782,-500.0,0.00019973,2]
[360207615,1746624643792,-505.88361203,0.00019973,2]
[360207616,1746624643802,-500.0,0.00019973,2]
[360207617,1746624643812,-500.0,0.00019973,2]
[360207618,1746624643822,-500.0,0.00019973,2]
[360207619,1746624643832,-247.00560835,0.00019973,2]
[360207620,1746624643841,-524.82050779,0.00019973,2]
[360207621,1746624643851,-500.0,0.00019973,2]
[360207622,1746624643861,-500.0,0.00019973,2]
[360207623,1746624643871,-500.0,0.00019973,2]
[360207624,1746624643881,-150.0,0.00019973,2]
[360207625,1746624643890,-151.0,0.00019973,2]
[360207626,1746624643900,-151.0,0.00019973,2]
[360207627,1746624643909,-151.0,0.00019973,2]
[360207628,1746624643919,-151.0,0.00019973,2]
[360207629,1746624643929,-151.0,0.00019973,2]
[360207630,1746624643938,-151.0,0.00019973,2]
[360207631,1746624643948,-153.922124,0.00019973,2]
[360207632,1746624643957,-151.0,0.00019973,2]
[360207633,1746624643967,-151.0,0.00019973,2]
[360207634,1746624643977,-981.904133,0.00019973,2]
[360207635,1746624643986,-981.904133,0.00019973,2]
[360207636,1746624643995,-151.0,0.00019973,2]
[360207637,1746624644005,-161.518022,0.00019973,2]
[360207638,1746624644014,-151.0,0.00019973,2]
[360207639,1746624644024,-150.0,0.00019973,2]
[360207640,1746624644033,-150.0,0.00019973,2]
[360207641,1746624644042,-151.0,0.00019973,2]
[360207642,1746624644051,-150.0,0.00019974,2]
[360207643,1746624644062,-150.0,0.00019974,2]
[360207644,1746624644071,-150.0,0.00019976,2]
[360207645,1746624644081,-1000.0,0.00019976,2]
[360207646,1746624644090,-151.0,0.00019976,2]
[360207647,1746624644099,-151.0,0.00019976,2]
[360207648,1746624644109,-187.313834,0.00019976,2]
[360207649,1746624644118,-151.0,0.00019976,2]
[360207650,1746624644127,-150.0,0.00019981,2]
[360207651,1746624644137,-150.0,0.00019981,2]
[360207652,1746624644148,-12500.0,0.00019981,2]
[360207653,1746624644157,-150.0,0.00019982,2]
[360207654,1746624644166,-150.0,0.00019982,2]
[360207655,1746624644176,-150.0,0.00019984,2]
[360207656,1746624644185,-4327.9265669,0.00019985,2]
[360207657,1746624644195,-1349.819522,0.00019985,2]
[360207658,1746624644410,-150.0,0.00019837,2]
[360207659,1746624644417,-237.5053482,0.00019985,2]
[360207660,1746624644424,-29.66963619,0.00019985,2]
[360207661,1746624644456,-150.0,0.00019733,2]
[360207662,1746624644463,-150.0,0.00019783,2]
[360207663,1746624644470,-112.34341,0.00019827,2]
[360207664,1746624644835,23900.0,0.00018892,2]
[360207665,1746624644929,-150.0,0.00019733,2]
[360207666,1746624644938,-150.0,0.00019742,2]
[360207667,1746624644947,-150.0,0.00019747,2]
[360207668,1746624644956,-13.125,0.00019753,2]
[360207669,1746624644971,-136.875,0.00019753,2]
[360207670,1746624644981,-150.0,0.000198,2]
[360207671,1746624644990,-150.0,0.00019818,2]
[360207672,1746624644999,-37.65659,0.00019827,2]
[360207673,1746624645008,-150.0,0.00019876,2]
[360207674,1746624645017,-150.0,0.00019896,2]
[360207675,1746624645027,-150.0,0.00019898,2]
[360207676,1746624645036,-150.0,0.00019906,2]
[360207677,1746624645045,-150.0,0.00019911,2]
[360207678,1746624645055,-150.0,0.00019915,2]
[360207679,1746624645064,-150.0,0.00019942,2]
[360207680,1746624645073,-450.0,0.0001997,2]
[360207681,1746624645082,-296.72021484,0.0001997,2]
[360207682,1746624645091,-150.0,0.00019972,2]
[360207683,1746624645101,-150.0,0.0001998,2]
[360207684,1746624645110,-150.0,0.00019983,2]
[360207685,1746624645118,-791.92036381,0.00019985,2]
[360207686,1746624645130,-150.0,0.00019985,2]
[360207687,1746624645139,-3691.0483717,0.00019986,2]
[360207688,1746624645148,-3054.1701765,0.00019986,2]
[360207689,1746624645160,-2417.2919813,0.00019986,2]
[360207690,1746624645170,-1780.4137861,0.00019986,2]
[360207691,1746624645179,-151.0,0.00019986,2]
[360207692,1746624645188,-150.0,0.00019986,2]
[360207693,1746624645198,-3899.07914416,0.00019986,2]
[360207694,1746624645213,-1177.25650396,0.00019986,2]
[360207696,1746624645546,-150.0,0.00019756,2]
[360207697,1746624645557,-150.0,0.00019786,2]
[360207698,1746624645566,-68.91631683,0.00019786,2]
[360207699,1746624645578,-81.08368317,0.00019786,2]
[360207700,1746624645587,-150.0,0.00019789,2]
[360207701,1746624645597,-150.0,0.00019818,2]
[360207702,1746624645606,-150.0,0.00019821,2]
[360207703,1746624645615,-150.0,0.00019855,2]
[360207704,1746624645625,-150.0,0.00019866,2]
[360207705,1746624645634,-150.0,0.000199,2]
[360207706,1746624645643,-150.0,0.000199,2]
[360207707,1746624645652,-150.0,0.00019919,2]
[360207708,1746624645661,-151.0,0.00019973,2]
[360207709,1746624645670,-4446.39211694,0.00019986,2]
[360207710,1746624645687,-150.0,0.00019845,2]
[360207711,1746624645696,-4749.75366782,0.00019986,2]
[360207712,1746624645713,-150.0,0.00019756,2]
[360207713,1746624645723,-2433.61900478,0.00019986,2]
[360207714,1746624645734,-3405.55913296,0.00019986,2]
[360207715,1746624645745,-1863.00486732,0.00019986,2]
[360207716,1746624645756,-1711.149975,0.00019986,2]
[360207717,1746624645767,-4361.0,0.00019986,2]
[360207718,1746624645793,-150.0,0.00019819,2]
[360207719,1746624645803,-149.99,0.00019986,2]
[360207720,1746624645974,-150.0,0.00019964,2]
[360207721,1746624645983,-12447.55316126,0.00019986,2]
[360207722,1746624645993,-155.169129,0.00019986,2]
[360207723,1746624646002,-1352.5272312,0.00019986,2]
[360207725,1746624646012,-1117.7295922,0.00019986,2]
[360207727,1746624646021,-882.9319532,0.00019986,2]
[360207728,1746624646030,-648.1343143,0.00019986,2]
[360207729,1746624646039,-151.0,0.00019986,2]
[360207730,1746624646048,-151.0,0.00019986,2]
[360207731,1746624646060,-151.0,0.00019986,2]
[360207732,1746624646069,-243.909258,0.00019986,2]
[360207733,1746624646078,-151.0,0.00019986,2]
[360207734,1746624646087,-151.0,0.00019986,2]
[360207735,1746624646096,-151.0,0.00019986,2]
[360207736,1746624646106,-151.0,0.00019986,2]
[360207737,1746624646115,-151.0,0.00019986,2]
[360207738,1746624646124,-151.0,0.00019986,2]
[360207739,1746624646134,-201.044056,0.00019986,2]
[360207740,1746624646144,-201.044056,0.00019986,2]
[360207741,1746624646155,-151.0,0.00019986,2]
[360207742,1746624646164,-69.22515243,0.00019986,2]
[360207743,1746624646176,-199.42747657,0.00019986,2]
[360207744,1746624646186,-151.371387,0.00019986,2]
[360207745,1746624646195,-150.0,0.00019986,2]
[360207746,1746624646204,-31.97614535,0.00019986,2]
[360207747,1746624646226,-150.0,0.00019745,2]
[360207748,1746624646236,-150.0,0.00019971,2]
[360207749,1746624646246,-119.02385465,0.00019986,2]
[360207750,1746624646255,-151.0,0.00019986,2]
[360207751,1746624646265,-358.37924533,0.00019986,2]
[360207752,1746624646276,-396.64993867,0.00019986,2]
[360207753,1746624646285,-151.0,0.00019986,2]
[360207754,1746624646294,-371.73495927,0.00019986,2]
[360207755,1746624651020,1199.0,0.000194,2]
[360207757,1746624753597,205.92,0.00018892,2]
[360207758,1746624753810,205.92,0.00018987,2]
[360207759,1746624769186,560.48713269,0.0003,120]
[360207760,1746624860782,250.0,0.00017,2]
[360207761,1746624861898,300.0,0.00019,2]
[360207762,1746624882028,170.7393119,0.000195,2]
[360207763,1746624887818,166.02,0.0001944,2]
[360207764,1746624906456,5219.69,0.00019,2]
[360207765,1746624966258,189.72,0.00018892,2]
[360207766,1746624968179,189.72,0.00028339,120]
[360207767,1746625012579,758.14,0.00016975,2]
[360207768,1746625012822,758.14,0.00019238,2]
[360207769,1746625039193,152.0,0.0003,31]
[360207770,1746625039495,152.0,0.00029712,30]
[360207771,1746625082660,150.0,0.00018986,7]
[360207772,1746625101761,250.0,0.00018892,2]
[360207773,1746625168562,217.06414006,0.00029041,120]
[360207774,1746625207366,1571.67,0.0001885,2]
[360207775,1746625254223,169.6,0.00015078,2]
[360207776,1746625277957,29967.77,0.0003,30]
[360207777,1746625324948,156.6,0.00016712,2]
[360207778,1746625339589,1000.0,0.0003,30]
[360207779,1746625364703,200.0,0.00018836,2]
[360207780,1746625366831,236.60797941,0.00019,8]
[360207781,1746625465567,1000.0,0.00018829,2]
[360207782,1746625542918,3006.4,0.00018825,2]
[360207783,1746625635799,159.69,0.00018892,2]
[360207785,1746625808129,23900.0,0.0001881,2]
[360207798,1746625831617,-583.61692209,0.00019502,2]
[360207799,1746625831628,-200.0,0.00019502,2]
[360207800,1746625831638,-151.0,0.00019502,2]
[360207801,1746625831651,-207.4,0.00019502,2]
[360207802,1746625831661,-151.0,0.00019502,2]
[360207803,1746625831671,-539.49585856,0.00019502,2]
[360207804,1746625831681,-1200.0,0.00019513,2]
[360207805,1746625831690,-300.0,0.00019513,2]
[360207806,1746625831700,-54321.93596074,0.00019514,2]
[360207807,1746625831788,-11914.75642471,0.00019514,2]
[360207808,1746625831800,-1199.0,0.000196,2]
[360207809,1746625831812,-1000.0,0.00019724,2]
[360207810,1746625831821,-1000.0,0.00019727,2]
[360207811,1746625831832,-150.0,0.00019727,2]
[360207812,1746625831843,-150.0,0.00019733,2]
[360207813,1746625831853,-1000.0,0.00019736,2]
[360207814,1746625831864,-150.0,0.00019738,2]
[360207815,1746625831874,-150.0,0.00019744,2]
[360207816,1746625831884,-150.0,0.00019744,2]
[360207817,1746625831897,-150.0,0.00019747,2]
[360207818,1746625831911,-150.0,0.00019747,2]
[360207819,1746625831920,-1000.0,0.00019749,2]
[360207820,1746625831929,-150.0,0.0001975,2]
[360207821,1746625831939,-151.96427281,0.0001975,2]
[360207822,1746625831948,-150.0,0.00019751,2]
[360207823,1746625831958,-150.0,0.00019755,2]
[360207824,1746625831968,-150.99064075,0.00019763,2]
[360207825,1746625831978,-1000.0,0.00019768,2]
[360207826,1746625831988,-150.0,0.00019773,2]
[360207827,1746625831998,-209.1473262,0.00019773,2]
[360207828,1746625832008,-150.0,0.00019774,2]
[360207829,1746625832021,-150.0,0.00019774,2]
[360207830,1746625832032,-231.93343165,0.00019774,2]
[360207831,1746625832043,-150.0,0.00019778,2]
[360207832,1746625832052,-150.0,0.00019778,2]
[360207833,1746625832063,-150.0,0.00019781,2]
[360207834,1746625832074,-150.0,0.00019781,2]
[360207835,1746625832085,-1000.0,0.00019781,2]
[360207836,1746625832095,-1000.0,0.00019781,2]
[360207837,1746625832105,-150.0,0.00019783,2]
[360207838,1746625832114,-150.0,0.00019783,2]
[360207839,1746625832123,-150.0,0.00019785,2]
[360207840,1746625832133,-150.0,0.00019786,2]
[360207841,1746625832143,-5828.66894049,0.00019786,2]
[360207842,1746625832152,-150.0,0.00019787,2]
[360207843,1746625832162,-1617.19420789,0.00019787,2]
[360207844,1746625832172,-150.0,0.00019788,2]
[360207845,1746625832182,-150.0,0.00019789,2]
[360207846,1746625832191,-150.0,0.0001979,2]